Cogmind - Beta 13 @@@ ROGUE MODE // 2024.04.02 @ 20:38:35 Player: frawding Result: Destroyed by Y-45 Defender with Heavy Assault Rifle Performance ------------- Evolutions (0) 0 Regions Visited (2) 400 Robots Destroyed (26) 130 Value Destroyed (505) 505 Prototype IDs (0) 0 Alien Tech Used (0) 0 Bonus (0) 0 TOTAL SCORE: 1035 Bonus ------- None Cogmind --------- Core Integrity 0/250 Matter 280/300 Energy 249/250 System Corruption 0% Temperature Cool (0) Movement Rolling (145) Ox3 Location -10/Mines Parts ------- > --- POWER (1) -------- Ion Engine > --- PROPULSION (2) --- Compact Wheel > --- UTILITY (2) ------ High-capacity Storage Unit Hardened Light Armor Plating > --- WEAPON (2) ------- Improved Light Cannon Improved Light Cannon > --- INVENTORY (20) --- Light Treads Large Matter Pod (150) Signal Interpreter Hardened Light Armor Plating Hardened Light Armor Plating Hardened Light Armor Plating Light Assault Rifle Light Assault Rifle Improved Light Cannon Improved Light Cannon Flail Flail Peak State ------------ > --- POWER ------------ Ion Engine > --- PROPULSION ------- Compact Wheel Compact Wheel > --- UTILITY ---------- High-capacity Storage Unit Hardened Light Armor Plating > --- WEAPON ----------- Light Assault Rifle Flail > --- INVENTORY -------- Light Treads Compact Wheel Large Matter Pod Signal Interpreter Hardened Light Armor Plating Hardened Light Armor Plating Hardened Light Armor Plating Light Assault Rifle Improved Light Cannon Improved Light Cannon Improved Light Cannon Improved Light Cannon Flail [Rating: 11] Favorites ----------- Power Ion Engine Engine Ion Engine Propulsion Light Treads Treads Light Treads Leg Aluminum Leg Wheel Compact Wheel Utility High-capacity Storage Unit Device Terrain Scanner Storage High-capacity Storage Unit Processor Signal Interpreter Protection Hardened Light Armor Plating Weapon Light Assault Rifle Ballistic Gun Light Assault Rifle Ballistic Cannon Improved Light Cannon Launcher Grenade Launcher Impact Weapon Flail Build | -11 -10 -10 ------- Run | Yrd Mat Min Slots Evolved . | . . . Power . | . . . Propulsion . | . . . Utility . | . . . Weapon . | . . . Parts Attached 24 | 5 15 4 Power 2 | 1 1 . Engine 2 | 1 1 . Core . | . . . Reactor . | . . . Propulsion 8 | 2 5 1 Treads 3 | 2 1 . Leg 2 | . 2 . Wheel 3 | . 2 1 Hover . | . . . Flight . | . . . Utility 6 | 1 4 1 Device 1 | . 1 . Storage 3 | 1 2 . Processor 1 | . 1 . Hackware . | . . . Protection 1 | . . 1 Artifact . | . . . Weapon 8 | 1 5 2 Energy Gun . | . . . Energy Cannon . | . . . Ballistic Gun 4 | 1 3 . Ballistic Cannon 2 | . . 2 Launcher 1 | . 1 . Special Weapon . | . . . Impact Weapon 1 | . 1 . Slashing Weapon . | . . . Piercing Weapon . | . . . Special Melee Weapon . | . . . Unidentified Prototypes . | . . . Parts Lost 4 | . 2 2 Power . | . . . Propulsion 3 | . 1 2 Utility . | . . . Weapon 1 | . 1 . Highest Loss Streak 2 | . 1 2 To Critical Strikes . | . . . Average Slot Usage (%) 91 | . 90 94 Engine 14 | . 14 14 Treads 12 | . 17 . Leg 2 | . 2 . Wheel 8 | . 3 23 Device 7 | . 9 . Storage 13 | . 13 14 Processor 4 | . 2 9 Protection 1 | . . 4 Ballistic Gun 17 | . 19 11 Ballistic Cannon 1 | . . 4 Impact Weapon 6 | . 4 11 Naked Turns . | . . . Heaviest Build 58 | 10 51 58 Greatest Support 40 | 40 40 32 Greatest Overweight (x) 15 | . 15 3 Average Overweight (x) 1 | . 1 1 Largest Inventory Capacity 20 | 8 20 20 Average Capacity 17 | 6 17 20 Most Carried 15 | 5 15 14 Average Carried 8 | 1 6 13 Final Capacity 20 | 8 20 20 Final Carried 14 | . 14 12 Class Distribution -------------------- 100% | Mutant Dominant Class ---------------- Mutant | -10/Materials Mutant | -10/Mines Resources | -11 -10 -10 ----------- Run | Yrd Mat Min Matter Collected 739 | 178 541 20 Remotely . | . . . Salvage Created 663 | . 602 61 Parts 30 | . 28 2 Haulers Intercepted 1 | . 1 . Recyclers Shooed 1 | . . 1 Parts Field Recycled . | . . . Retrieved Matter . | . . . Parts Self-Destructed . | . . . Prevented . | . . . Kills | -11 -10 -10 ------- Run | Yrd Mat Min Combat Hostiles Destroyed 17 | . 15 2 Melee 4 | . 3 1 Guns 10 | . 10 . AOE 2 | . 2 . Classes Destroyed 7 | . 7 . Worker 4 | . 4 . Builder 2 | . 2 . Hauler 1 | . 1 . Recycler 1 | . 1 . Watcher 1 | . 1 . Swarmer 6 | . 6 . Grunt 11 | . 9 2 Best Kill Streak 4 | . 4 1 Combat Bots Only 3 | . 3 1 Max Kills in Single Turn 2 | . 2 1 Gunslinging . | . . . Exploded 2 | . 2 . Melee 1 | . 1 1 Uniques/NPCs Destroyed . | . . . Combat | -11 -10 -10 -------- Run | Yrd Mat Min Hostile Shots Fired 116 | . 75 41 Missed 33 | . 22 11 Damage Taken 975 | . 611 364 Core 254 | . 112 142 Absorbed by Shields . | . . . Regen/Repaired (Parts) 103 | . 103 . Core Remaining (%) 100 | 100 . . Volleys Fired 37 | . 37 . Largest 2 | . 2 . Hottest 50 | . 50 . Shots Fired 65 | . 65 . Gun 57 | . 57 . Cannon . | . . . Launcher 8 | . 8 . Special . | . . . Kinetic 57 | . 57 . Thermal . | . . . Explosive 8 | . 8 . Electromagnetic . | . . . Robot Hit Streak 10 | . 10 . Robot Miss Streak 3 | . 3 . Penetration Max . | . . . Secondary Targets 2 | . 2 . Max Gunslinging Chain 1 | . 1 . Shots Hit Robots 65 | . 56 9 Core Hits 30 | . 29 1 Critical Kills 1 | . 1 . Critical Parts Destroyed 1 | . 1 . Critical Strikes 2 | . 2 . Smash 2 | . 2 . Melee Attacks 32 | . 21 11 Impact 32 | . 21 11 Slashing . | . . . Piercing . | . . . Sneak Attacks 12 | . 10 2 Combat Hostiles . | . . . Follow-up Attacks . | . . . Damage Inflicted 1968 | . 1658 310 Guns 343 | . 343 . Cannons . | . . . Explosions 241 | . 241 . Melee 1384 | . 1074 310 Ramming . | . . . Kinetic 343 | . 343 . Thermal . | . . . Explosive 241 | . 241 . Electromagnetic . | . . . Impact 1384 | . 1074 310 Slashing . | . . . Piercing . | . . . Highest Corruption . | . . . Average Corruption . | . . . Corruption Purged . | . . . Corruption Blocked . | . . . Overload Shots . | . . . Overflow Damage 343 | . 314 29 Projectiles . | . . . Explosions 1 | . 1 . Melee 342 | . 313 29 Knockbacks 5 | . 3 2 Impact 5 | . 3 2 Kinetic . | . . . Secondary . | . . . Self-Inflicted Damage 30 | . 30 . Shots 2 | . 2 . Rammed . | . . . Targets Rammed . | . . . Kicked . | . . . Crushed . | . . . Highest Temperature 15 | . 15 . Average Temperature 7 | . 7 . Received Heat Transfer 357 | . 177 180 Siege Activations . | . . . Robots Corrupted . | . . . Combat Hostiles . | . . . Parts Fried 9 | . 8 1 Impact Corruptions 16 | . 13 3 Robots Melted . | . . . Combat Hostiles . | . . . Parts Melted . | . . . Heat Transferred . | . . . Parts Sabotaged . | . . . Parts Stolen . | . . . Parts Stripped . | . . . Power Chain Reactions . | . . . Alert | -11 -10 -10 ------- Run | Yrd Mat Min Peak Influence 239 | . 239 50 Initial 13 | . . 13 Average 60 | . 77 18 Maximum Alert Level 1 | . 1 . Low Security (%) 94 | 100 92 100 Level 1 5 | . 7 . Level 2 . | . . . Level 3 . | . . . Level 4 . | . . . Level 5 . | . . . High Security . | . . . Max Security . | . . . Squads Dispatched 3 | . 3 . Investigation 2 | . 2 . Extermination . | . . . Reinforcement 1 | . 1 . Assault . | . . . Garrison . | . . . Intercept . | . . . Searches Triggered . | . . . Construction Impeded . | . . . Haulers Reinforced . | . . . Active Scanning Responses . | . . . Cargo Convoy Interrupts . | . . . Stealth | -11 -10 -10 --------- Run | Yrd Mat Min Distress Signals 2 | . 2 . Communications Jammed . | . . . Distress Signals . | . . . Times Spotted 33 | . 28 5 Peak Tracking Total 4 | . 4 3 Tactical Retreats 2 | . 1 1 Traps | -11 -10 -10 ------- Run | Yrd Mat Min Traps Triggered 5 | . 5 . Indirectly . | . . . Trap Hack Attempts . | . . . Triggered . | . . . Disarmed . | . . . Reprogrammed . | . . . Reused . | . . . Traps Extracted . | . . . Installed . | . . . Triggered . | . . . Machines | -11 -10 -10 ---------- Run | Yrd Mat Min Machines Disabled 2 | . 2 . Max in Single Turn 1 | . 1 . Machines Repaired . | . . . Machines Dismantled . | . . . Machines Sabotaged . | . . . Overloaded Fab Kills . | . . . Hacking | -11 -10 -10 --------- Run | Yrd Mat Min Machines Accessed 1 | . 1 . Terminals . | . . . Fabricators . | . . . Repair Stations 1 | . 1 . Recycling Units . | . . . Scanalyzers . | . . . Garrison Access . | . . . Total Hacks 2 | . 2 . Successful 2 | . 2 . Failed . | . . . Catastrophic . | . . . Database Lockouts . | . . . Manual . | . . . Terminals . | . . . Fabricators . | . . . Repair Stations 2 | . 2 . Recycling Units . | . . . Scanalyzers . | . . . Garrison Access . | . . . Terminal Hacks . | . . . Fabricator Hacks . | . . . Repair Station Hacks 2 | . 2 . Scan Component 1 | . 1 . Repair 1 | . 1 . Recycling Unit Hacks . | . . . Scanalyzer . | . . . Garrison Access Hacks . | . . . Unauthorized Hacks . | . . . Terminals . | . . . Fabricators . | . . . Repair Stations . | . . . Recycling Units . | . . . Scanalyzers . | . . . Garrison Access . | . . . Data Cores Recovered . | . . . Used . | . . . Hacking Detections 1 | . 1 . Full Trace Events . | . . . Feedback Events . | . . . Feedback Blocked . | . . . Robot Schematics Acquired . | . . . Robots Built . | . . . Authchips . | . . . Time . | . . . Total Robot Build Rating . | . . . Part Schematics Acquired . | . . . Parts Built . | . . . Authchips . | . . . Time . | . . . Total Part Build Rating . | . . . Parts Repaired 1 | . 1 . Time 26 | . 26 . Parts Recycled . | . . . Recycled Matter . | . . . Retrieved Matter . | . . . Retrieved Components . | . . . Parts Scanalyzed . | . . . Part Schematics Acquired . | . . . Parts Damaged . | . . . Bothacking | -11 -10 -10 ------------ Run | Yrd Mat Min Used RIF Installer . | . . . Robots Hacked . | . . . Non-combat . | . . . Combat . | . . . Robot Hacks Applied . | . . . Relay Couplers Released . | . . . Fabnet Peak Effective % . | . . . Robots Rewired . | . . . Allies Hacked . | . . . Hacks Repelled . | . . . Allies | -11 -10 -10 -------- Run | Yrd Mat Min Total Allies . | . . . Largest Group . | . . . Highest-Rated Group . | . . . Highest-Rated Ally . | . . . Total Orders . | . . . Ally Attacks . | . . . Total Damage . | . . . Kills . | . . . Allies Corrupted . | . . . Allies Melted . | . . . Intel | -11 -10 -10 ------- Run | Yrd Mat Min Robot Analysis Total . | . . . Derelict Logs Recovered . | . . . Drone Launches . | . . . Drone Recoveries . | . . . Exploration | -11 -10 -10 ------------- Run | Yrd Mat Min Turns Passed 2338 | 53 1687 598 Spaces Moved 1193 | 45 719 429 Core 29 | 25 4 . Treads 495 | 20 475 . Legs 57 | . 57 . Wheels 612 | . 183 429 Hover . | . . . Flight . | . . . Fastest Speed 50 | 50 115 115 Average Speed 169 | 98 201 122 Slowest Speed 800 | 160 800 145 Overloaded Moves . | . . . Propulsion Burnouts . | . . . Robots Hopped . | . . . Cave-ins Triggered . | . . . Exploration Rate (%) 58 | 4 88 83 Regions Visited 2 Branch Regions 1 Pre-discovered Areas . | . . . Known Exits Taken 1 | . 1 . Unknown Exits Taken 1 | 1 . . Scrap Searched . | . . . Spaces Dug . | . . . Terrain Destroyed 36 | . 36 . Melee . | . . . Projectile . | . . . AOE 36 | . 36 . Terrain Rammed . | . . . Walls Destroyed . | . . . Machines Disabled . | . . . Actions | -11 -10 -10 --------- Run | Yrd Mat Min Total 1413 | 54 872 487 Wait 80 | . 40 40 Move 1191 | 44 718 429 Hop . | . . . Pick Up 32 | 5 27 . Fast Attach . | . . . Attach 22 | 5 13 4 Detach 10 | . 7 3 Swap 2 | . 2 . Drop 7 | . 7 . Fire 37 | . 37 . Melee 32 | . 21 11 Ram . | . . . Kick . | . . . Crush . | . . . Escape Stasis . | . . . Rewire . | . . . Trap . | . . . Miscellaneous . | . . . Route ------- -11/Scrapyard -10/Materials (discovered 5 exits: *Mat x3 / *Min / *Sub) -10/Mines (discovered 1 exit: *Mat) History --------- Turn | Location | Event 3 | -11/Scrapyard | Discovered new exit (range 15) 54 | -11/Scrapyard | Entered Materials 304 | -10/Materials | Build established: Mutant 371 | -10/Materials | Discovered new exit (range 12) 510 | -10/Materials | Discovered new exit (range 7) 582 | -10/Materials | Discovered new exit (range 7) 952 | -10/Materials | Repaired Lgt. Treads 1028 | -10/Materials | Discovered new exit (range 14) 1581 | -10/Materials | Discovered new exit (range 9) 1591 | -10/Materials | Identified exit to Materials 1606 | -10/Materials | Identified exit to Subcaves 1740 | -10/Materials | Identified exit to Mines 1741 | -10/Materials | Entered Mines 1790 | -10/Mines | Met a Derelict bent on vengeance 1871 | -10/Mines | Discovered exit to Materials (range 10) 2142 | -10/Mines | Core integrity fell below 50% 2160 | -10/Mines | Core integrity fell below 20% 2339 | -10/Mines | Destroyed by Y-45 Defender with Heavy Assault Rifle Last Messages --------------- 02177_ Com. Wheel destroyed. 02178_ Sneak attack on R-06 Scavenger. 02178_ Destroyed Com. Wheel. 02178_ R-06 Scavenger system corrupted by crushing effect. 02178_ K-01 Serf collects debris. 02181_ Acquired 10 matter. 02194_ Destroyed Sml. Laser. 02194_ Destroyed Aluminum Leg. 02194_ G-34 Mercenary system corrupted by crushing effect. 02195_ G-34 Mercenary system terminally corrupted. 02195_ Aluminum Leg fried. 02196_ K-01 Serf collects debris. 02248_ T-07 Excavator is excavating. 02255_ K-01 Serf collects debris. 02256_ T-07 Excavator is excavating. 02275_ U-05 Engineer lays Concrete. 02316_ K-01 Serf collects debris. Map ----- +----------------------------------------------------+ | | | | | | | | | | | | | | | | | | | | | | | | | ??????????????#####??????????????????????????????? | | ?????????????##" "##????????????????????????????? | | ?????????????#][ ![#????????????????????????????? | | ?????????????#!! [!#####????????????????????????? | | ??????????????# ### ##???????????????????????? | | ????????????####/Y### #???????????????????????? | | ???????????## Y #??####????????####?????? | | ??????????## #### ##??????## ##????? | | ??????????# ## ######## #????? | | ??????????# ## ## #????? | | ??????????## #?????? | | ??? ???????## ##?????? | | ??# ????????## ## #??????? | | ??# ?????????####?## @ #??????? | | ??# ??????????????# ##??????? | | ??# ????####??????## ## ## #???????? | | ??# ???## ##??????## ####### ### ##???????? | | ??# #?## ##??????# #?????# ### #????????? | | ??? ## #?????## #????## ##????????? | | ???? ?????? #???## ##?????????? | | ????? ??????# ###??## #??????????? | | ?????# #???????# #???## #??????????? | | ?????# #???????# #??## ##??????????? | | ????## ##??????# #?## ## ##???????????? | | ???## ###????# #?# ### ###????????????? | | ??## ##???# ### ##?# #??????????????? | | ### ## ##??# ## ##??# #??????????????? | | #### #### # ##???# ##?????????????? | | ##??# ##????# ##????????????? | | ####??## ##?????## #????????????? | | ##????## ##### ##???????# ##????????????? | | ##????## #??# #????????####?????????????? | | ##?????# """ #??# #?????????????????????????? | | #??????# """ #??# #?????????????????????????? | | ???????## """ ##?# #?????????????????????????? | | ????????## ### #######???????????????????? | | ?????????# ## #???????????????????? | | ????????## ##### #???????????????????? | +----------------------------------------------------+ Best States ------------- Heat Dissipation 25 Energy Generation 10 Energy Capacity 250 Matter Stores 300 Matter Capacity 300 Sight Range 16 Terrain Scan Range 14 Terrain Scan Density 10 Armor Coverage 150 Evasion (%) 50 Recoil Reduction 2 Item Schematics ----------------- None Robot Schematics ------------------ None Fabricated ------------ Nothing Alien Tech Used ----------------- None Achievements -------------- None Challenges ------------ None Game ------ Seed BeamGhostMeganuke Manual? 0 Play Time 00:17:08 Cumulative 7.5 hours Start 2024.04.02 @ 20:23:38 End 2024.04.02 @ 20:38:35 Sessions 1 Manual Loads 0 Difficulty Rogue Special Mode None Game No. 10 Rogue 10 Adventurer 0 Explorer 0 Win Type - Total 0 Types 0/0/0/0/0/0/0/0/0 Lore% 15 Gallery% 12 Achievement% 12 Wizard Run 0 Options --------- Layout 1 ASCII 0 Keyboard 0 Movement Mouse Keybinds 0 Fullscreen 1 Font 24/Smallcaps Map View 50x35 Zoom Use 0% Tactical HUD 1 Map Filters NONE Filters NONE Steam 1 RUN: 1533921b-a2bf-49e3-abe4-fcadf5383cac